[Event "3rd Gujarat GM Open 2022"]
[Site "Ahmedabad"]
[Date "2022.04.02"]
[Round "1.1"]
[White "Delgado Ramirez, Neuris"]
[Black "Rajveer Pinkesh Nahar"]
[Result "1-0"]
[ECO "C47"]
[WhiteElo "2615"]
[BlackElo "1476"]
[Annotator "ChessBase"]
[PlyCount "63"]
[EventDate "2022.03.31"]
[EventType "swiss"]
[EventCountry "IND"]
[SourceTitle "playchess.com"]
[Source "ChessBase"]
[SourceQuality "1"]
[TimeControl "5400+30"]

1. e4 {[%emt 0:00:05]} e5 {[%emt 0:00:08]} 2. Nf3 {[%emt 0:00:09]} Nc6 {[%emt 0:00:03]} 3. Nc3 {[%emt 0:00:12]} Nf6 {[%emt 0:00:09]} 4. Be2 {[%emt 0:00:12]} Bb4 {[%emt 0:00:27]} 5. Nd5 {[%emt 0:00:29]} Bc5 {[%emt 0:02:14]} 6. d3 {[%emt 0:00:13]} Nxd5 {[%emt 0:01:52]} 7. exd5 {[%emt 0:00:25]} Ne7 {[%emt 0:00:12]} 8. Nxe5 {[%emt 0:02:40]} d6 {[%emt 0:01:25]} 9. Nf3 {[%emt 0:02:14]} Nxd5 {[%emt 0:00:39]} 10. Bg5 {[%emt 0:01:56]} Ne7 {[%emt 0:05:16]} 11. d4 {[%emt 0:00:21]} Bb6 {[%emt 0:00:41]} 12. h3 {[%emt 0:00:32]} h6 {[%emt 0:00:49]} 13. Bh4 {[%emt 0:01:25]} Bf5 {[%emt 0:02:16]} 14. O-O {[%emt 0:02:36]} g5 {[%emt 0:08:05]} 15. Bg3 {[%emt 0:00:06]} Qd7 {[%emt 0:00:38]} 16. c4 {[%emt 0:00:15]} O-O {[%emt 0:03:19]} 17. Rc1 {[%emt 0:05:29]} c6 {[%emt 0:04:15]} 18. Qb3 {[%emt 0:00:18]} Be6 {[%emt 0:08:36]} 19. Rfd1 {[%emt 0:01:23]} Bc7 {[%emt 0:03:07]} 20. d5 {[%emt 0:01:10]} Bf5 {[%emt 0:02:34]} 21. dxc6 {[%emt 0:01:32]} bxc6 {[%emt 0:01:18]} 22. Qc3 {[%emt 0:00:13]} Rad8 {[%emt 0:01:44]} 23. Bf1 {[%emt 0:03:42]} Bg6 {[%emt 0:09:58]} 24. Ne5 {[%emt 0:00:40]} Qe6 {[%emt 0:00:48]} 25. Ng4 {[%emt 0:00:21]} f5 {[%emt 0:01:36]} 26. Re1 {[%emt 0:00:03]} Qd7 {[%emt 0:08:23]} 27. Nf6+ {[%emt 0:00:14]} Rxf6 {[%emt 0:00:06]} 28. Qxf6 {[%emt 0:00:07]} Re8 {[%emt 0:00:46]} 29. Bd3 {[%emt 0:04:06]} Kh7 {[%emt 0:00:49]} 30. Re6 {[%emt 0:01:42]} Bd8 {[%emt 0:02:42]} 31. Bxf5 {[%emt 0:05:25]} Bxf5 {[%emt 0:00:18]} 32. Qf7+ {[%emt 0:00:13]} 1-0

[Event "3rd Gujarat GM Open 2022"]
[Site "Ahmedabad"]
[Date "2022.04.02"]
[Round "1.2"]
[White "Khedkar Prasad"]
[Black "Savchenko, Boris"]
[Result "0-1"]
[ECO "E46"]
[WhiteElo "1467"]
[BlackElo "2535"]
[Annotator "ChessBase"]
[PlyCount "122"]
[EventDate "2022.03.31"]
[EventType "swiss"]
[EventCountry "IND"]
[SourceTitle "playchess.com"]
[Source "ChessBase"]
[SourceQuality "1"]
[TimeControl "5400+30"]

1. d4 {[%emt 0:00:12]} Nf6 {[%emt 0:00:41]} 2. c4 {[%emt 1:31:18]} e6 {[%emt 0:00:34]} 3. Nc3 {[%emt 0:00:00]} Bb4 {[%emt 0:00:17]} 4. e3 {[%emt 0:00:00]} O-O {[%emt 0:00:07]} 5. Nge2 {[%emt 0:00:00]} d5 {[%emt 0:00:25]} 6. a3 {[%emt 0:00:00]} Be7 {[%emt 0:00:18]} 7. cxd5 {[%emt 0:00:00]} exd5 {[%emt 0:00:06]} 8. Nf4 {[%emt 0:00:00]} c6 {[%emt 0:01:09]} 9. Bd3 {[%emt 0:00:00]} Na6 {[%emt 0:00:07]} 10. O-O {[%emt 0:00:00]} Nc7 {[%emt 0:00:05]} 11. f3 {[%emt 0:00:00]} a5 {[%emt 0:00:38]} 12. Bd2 {[%emt 0:00:00]} c5 {[%emt 0:01:38]} 13. Kh1 {[%emt 0:00:00]} c4 {[%emt 0:01:04]} 14. Bc2 {[%emt 0:00:00]} b5 {[%emt 0:00:26]} 15. Nce2 {[%emt 0:00:00]} Bb7 {[%emt 0:06:17]} 16. g4 {[%emt 0:00:00]} b4 {[%emt 0:03:06]} 17. axb4 {[%emt 0:00:00]} Bxb4 {[%emt 0:01:01]} 18. Ba4 {[%emt 0:00:00]} Qd6 {[%emt 0:02:32]} 19. Ng3 {[%emt 0:00:00]} g6 {[%emt 0:01:34]} 20. Bc3 {[%emt 0:00:00]} Bc6 {[%emt 0:05:33]} 21. Bxc6 {[%emt 0:00:00]} Qxc6 {[%emt 0:00:08]} 22. g5 {[%emt 0:00:00]} Nd7 {[%emt 0:02:04]} 23. e4 {[%emt 0:00:00]} f6 {[%emt 0:01:54]} 24. gxf6 {[%emt 0:00:00]} Rxf6 {[%emt 0:01:37]} 25. Nxd5 {[%emt 0:00:00]} Nxd5 {[%emt 0:00:07]} 26. exd5 {[%emt 0:00:00]} Qxd5 {[%emt 0:00:05]} 27. Ne4 {[%emt 0:00:00]} Rb6 {[%emt 0:03:01]} 28. Qa4 {[%emt 0:00:00]} Rf8 {[%emt 0:00:34]} 29. Rae1 {[%emt 0:00:00]} Rb5 {[%emt 0:06:05]} 30. Re3 {[%emt 0:00:00]} Nb6 {[%emt 0:02:50]} 31. Qc2 {[%emt 0:00:00]} Qf5 {[%emt 0:00:21]} 32. Qe2 {[%emt 0:00:00]} Qf7 {[%emt 0:05:13]} 33. Bxb4 {[%emt 0:00:15]} Rxb4 {[%emt 0:00:41]} 34. Ng5 {[%emt 0:01:48]} Qf5 {[%emt 0:03:40]} 35. Ne6 {[%emt 0:04:11]} Rb8 {[%emt 0:02:47]} 36. Nc5 {[%emt 0:01:05]} Nd5 {[%emt 0:00:55]} 37. Re5 {[%emt 0:02:43]} Qf7 {[%emt 0:00:14]} 38. Na6 {[%emt 0:00:50]} Rxb2 {[%emt 0:00:27]} 39. Qxc4 {[%emt 0:00:42]} Rd8 {[%emt 0:03:01]} 40. Nc5 {[%emt 0:02:48]} Qf4 {[%emt 0:02:54]} 41. Re2 {[%emt 0:01:29]} Rxe2 {[%emt 0:00:10]} 42. Qxe2 {[%emt 0:00:02]} Qxd4 {[%emt 0:00:08]} 43. Ne6 {[%emt 0:00:17]} Qe3 {[%emt 0:00:09]} 44. Qxe3 {[%emt 0:00:32]} Nxe3 {[%emt 0:00:05]} 45. Ra1 {[%emt 0:00:38]} Rd1+ {[%emt 0:06:15]} 46. Rxd1 {[%emt 0:00:03]} Nxd1 {[%emt 0:00:06]} 47. Nc5 {[%emt 0:00:12]} Nb2 {[%emt 0:03:20]} 48. Kg2 {[%emt 0:00:54]} a4 {[%emt 0:01:07]} 49. Kf2 {[%emt 0:00:45]} Kf7 {[%emt 0:00:33]} 50. Ke2 {[%emt 0:00:56]} a3 {[%emt 0:01:01]} 51. Kd2 {[%emt 0:00:42]} a2 {[%emt 0:01:19]} 52. Nb3 {[%emt 0:00:09]} Kf6 {[%emt 0:00:39]} 53. Kc3 {[%emt 0:01:19]} Nd1+ {[%emt 0:00:41]} 54. Kc2 {[%emt 0:01:18]} Ne3+ {[%emt 0:00:29]} 55. Kd3 {[%emt 0:00:19]} Nf5 {[%emt 0:00:13]} 56. Ke4 {[%emt 0:00:56]} g5 {[%emt 0:00:11]} 57. h3 {[%emt 0:00:31]} h5 {[%emt 0:00:12]} 58. f4 {[%emt 0:00:27]} g4 {[%emt 0:00:06]} 59. hxg4 {[%emt 0:00:17]} hxg4 {[%emt 0:00:08]} 60. Kd3 {[%emt 0:01:23]} g3 {[%emt 0:00:07]} 61. Ke2 {[%emt 0:00:43]} Nd4+ {[%emt 0:00:05]} 0-1

[Event "3rd Gujarat GM Open 2022"]
[Site "Ahmedabad"]
[Date "2022.04.02"]
[Round "1.3"]
[White "Stany, G.A."]
[Black "Pawar Sohum"]
[Result "1-0"]
[ECO "B31"]
[WhiteElo "2517"]
[BlackElo "1458"]
[Annotator "ChessBase"]
[PlyCount "107"]
[EventDate "2022.03.31"]
[EventType "swiss"]
[EventCountry "IND"]
[SourceTitle "playchess.com"]
[Source "ChessBase"]
[SourceQuality "1"]
[TimeControl "5400+30"]

1. e4 {[%emt 0:00:04]} c5 {[%emt 0:00:10]} 2. Nf3 {[%emt 0:00:04]} Nc6 {[%emt 0:00:07]} 3. Bb5 {[%emt 0:01:00]} g6 {[%emt 0:00:26]} 4. Bxc6 {[%emt 0:00:16]} dxc6 {[%emt 0:00:19]} 5. d3 {[%emt 0:00:06]} Bg7 {[%emt 0:00:18]} 6. h3 {[%emt 0:00:04]} Qc7 {[%emt 0:02:56]} 7. Nc3 {[%emt 0:00:29]} e5 {[%emt 0:02:30]} 8. Be3 {[%emt 0:00:08]} b6 {[%emt 0:00:14]} 9. Qd2 {[%emt 0:08:26]} h6 {[%emt 0:01:48]} 10. Nh2 {[%emt 0:03:08]} f5 {[%emt 0:03:12]} 11. exf5 {[%emt 0:03:11]} gxf5 {[%emt 0:00:18]} 12. f4 {[%emt 0:00:05]} Be6 {[%emt 0:05:00]} 13. fxe5 {[%emt 0:19:43]} Bxe5 {[%emt 0:02:57]} 14. O-O-O {[%emt 0:01:23]} O-O-O {[%emt 0:04:19]} 15. Nf3 {[%emt 0:00:13]} Bg3 {[%emt 0:01:59]} 16. Ne2 {[%emt 0:04:06]} Bd6 {[%emt 0:01:14]} 17. Kb1 {[%emt 0:08:45]} Qg7 {[%emt 0:17:01]} 18. Bf4 {[%emt 0:09:50]} Ne7 {[%emt 0:02:23]} 19. Bxd6 {[%emt 0:00:31]} Rxd6 {[%emt 0:00:02]} 20. Nf4 {[%emt 0:00:37]} Bf7 {[%emt 0:09:21]} 21. Rhf1 {[%emt 0:01:35]} Rhd8 {[%emt 0:03:47]} 22. Rde1 {[%emt 0:01:36]} Nd5 {[%emt 0:00:30]} 23. Nxd5 {[%emt 0:12:21]} Bxd5 {[%emt 0:00:35]} 24. Nh4 {[%emt 0:01:43]} Rf6 {[%emt 0:02:43]} 25. Nxf5 {[%emt 0:00:28]} Bxa2+ {[%emt 0:03:58]} 26. Ka1 {[%emt 0:02:01]} Rxf5 {[%emt 0:00:05]} 27. Rxf5 {[%emt 0:00:03]} Bd5 {[%emt 0:00:28]} 28. g4 {[%emt 0:00:34]} c4 {[%emt 0:01:26]} 29. Qc3 {[%emt 0:01:23]} Qxc3 {[%emt 0:00:52]} 30. bxc3 {[%emt 0:00:03]} Rd7 {[%emt 0:06:14]} 31. Rf6 {[%emt 0:03:07]} Rh7 {[%emt 0:00:34]} 32. dxc4 {[%emt 0:00:05]} Bg2 {[%emt 0:00:19]} 33. Re3 {[%emt 0:00:27]} h5 {[%emt 0:01:58]} 34. g5 {[%emt 0:01:38]} Kb7 {[%emt 0:02:23]} 35. Rf2 {[%emt 0:00:33]} Bxh3 {[%emt 0:00:35]} 36. Rxh3 {[%emt 0:00:04]} Ka6 {[%emt 0:00:21]} 37. g6 {[%emt 0:00:25]} Rg7 {[%emt 0:00:11]} 38. Rg2 {[%emt 0:00:05]} b5 {[%emt 0:00:16]} 39. Rxh5 {[%emt 0:00:05]} bxc4 {[%emt 0:00:39]} 40. Rh7 {[%emt 0:00:05]} Rxg6 {[%emt 0:00:18]} 41. Rxg6 {[%emt 0:00:05]} Kb6 {[%emt 0:00:06]} 42. Rxa7 {[%emt 0:00:25]} Kxa7 {[%emt 0:00:16]} 43. Rxc6 {[%emt 0:00:04]} Kb7 {[%emt 0:00:05]} 44. Rxc4 {[%emt 0:00:04]} Kb6 {[%emt 0:00:05]} 45. Kb2 {[%emt 0:00:05]} Kb5 {[%emt 0:00:08]} 46. Kb3 {[%emt 0:00:05]} Kb6 {[%emt 0:00:08]} 47. Kb4 {[%emt 0:00:05]} Ka6 {[%emt 0:00:20]} 48. Rc5 {[%emt 0:00:09]} Kb6 {[%emt 0:00:07]} 49. c4 {[%emt 0:00:05]} Kb7 {[%emt 0:00:09]} 50. Kb5 {[%emt 0:00:06]} Ka7 {[%emt 0:00:10]} 51. Rc7+ {[%emt 0:00:03]} Ka8 {[%emt 0:00:15]} 52. Kb6 {[%emt 0:00:09]} Kb8 {[%emt 0:00:04]} 53. c5 {[%emt 0:00:04]} Ka8 {[%emt 0:00:05]} 54. Rc8# {[%emt 0:00:04]} 1-0

[Event "3rd Gujarat GM Open 2022"]
[Site "Ahmedabad"]
[Date "2022.04.02"]
[Round "1.4"]
[White "Sajitha B"]
[Black "Harsha Bharathakoti"]
[Result "0-1"]
[ECO "D02"]
[WhiteElo "1455"]
[BlackElo "2499"]
[Annotator "ChessBase"]
[PlyCount "88"]
[EventDate "2022.03.31"]
[EventType "swiss"]
[EventCountry "IND"]
[SourceTitle "playchess.com"]
[Source "ChessBase"]
[SourceQuality "1"]
[TimeControl "5400+30"]

1. d4 {[%emt 1:31:00]} d5 {[%emt 1:31:00]} 2. Bf4 {[%emt 0:00:30]} Nf6 {[%emt 0:00:30]} 3. e3 {[%emt 0:00:30]} c5 {[%emt 0:00:30]} 4. c3 {[%emt 0:00:30]} Nc6 {[%emt 0:00:30]} 5. Nd2 {[%emt 0:00:30]} Bf5 {[%emt 0:00:30]} 6. Ngf3 {[%emt 0:00:30]} Qb6 {[%emt 0:00:30]} 7. Qc1 {[%emt 0:00:30]} h6 {[%emt 0:00:30]} 8. Be2 {[%emt 0:00:30]} e6 {[%emt 0:00:30]} 9. O-O {[%emt 0:00:30]} Rc8 {[%emt 0:00:30]} 10. h3 {[%emt 0:00:30]} Be7 {[%emt 0:00:30]} 11. Rd1 {[%emt 0:00:30]} O-O {[%emt 0:00:30]} 12. Bh2 {[%emt 0:00:30]} Rfd8 {[%emt 0:00:30]} 13. Nf1 {[%emt 0:00:30]} c4 {[%emt 0:00:30]} 14. Re1 {[%emt 0:00:30]} Qa5 {[%emt 0:00:30]} 15. a3 {[%emt 0:00:30]} b5 {[%emt 0:00:30]} 16. Bd1 {[%emt 0:00:30]} Qb6 {[%emt 0:00:30]} 17. Bc2 {[%emt 0:00:30]} a5 {[%emt 0:00:30]} 18. Bxf5 {[%emt 0:00:30]} exf5 {[%emt 0:00:30]} 19. Qc2 {[%emt 0:00:30]} g6 {[%emt 0:00:30]} 20. N1d2 {[%emt 0:00:30]} Bd6 {[%emt 0:00:30]} 21. Bxd6 {[%emt 0:00:30]} Rxd6 {[%emt 0:00:30]} 22. Ne5 {[%emt 0:00:30]} Re6 {[%emt 0:00:30]} 23. f4 {[%emt 0:00:30]} Ne8 {[%emt 0:00:30]} 24. Kh1 {[%emt 0:00:30]} Nd6 {[%emt 0:00:30]} 25. g4 {[%emt 0:00:30]} Ne7 {[%emt 0:00:30]} 26. Nd7 {[%emt 0:00:30]} Qb7 {[%emt 0:00:30]} 27. Nc5 {[%emt 0:00:30]} Rxc5 {[%emt 0:00:30]} 28. dxc5 {[%emt 0:00:30]} d4+ {[%emt 0:00:30]} 29. Kh2 {[%emt 0:00:30]} d3 {[%emt 0:00:30]} 30. Qd1 {[%emt 0:00:30]} Ne4 {[%emt 0:00:30]} 31. Nf3 {[%emt 0:00:30]} fxg4 {[%emt 0:00:30]} 32. hxg4 {[%emt 0:00:30]} Nf2 {[%emt 0:00:30]} 33. c6 {[%emt 0:00:30]} Nxc6 {[%emt 0:00:30]} 34. Qd2 {[%emt 0:00:30]} Nxg4+ {[%emt 0:00:30]} 35. Kh3 {[%emt 0:00:30]} Nf6 {[%emt 0:00:30]} 36. Rg1 {[%emt 0:00:30]} Nd5 {[%emt 0:00:30]} 37. Rae1 {[%emt 0:00:30]} Re4 {[%emt 0:00:30]} 38. Kh2 {[%emt 0:00:30]} Qe7 {[%emt 0:00:30]} 39. f5 {[%emt 0:00:30]} Ne5 {[%emt 0:00:30]} 40. Nxe5 {[%emt 0:00:30]} Rh4+ {[%emt 0:00:30]} 41. Kg2 {[%emt 0:00:30]} Qxe5 {[%emt 0:00:30]} 42. Rh1 {[%emt 0:00:30]} Qe4+ {[%emt 0:00:30]} 43. Kg3 {[%emt 0:00:30]} Rg4+ {[%emt 0:00:30]} 44. Kf2 {[%emt 0:00:30]} Qg2# {[%emt 0:00:30]} 0-1

[Event "3rd Gujarat GM Open 2022"]
[Site "Ahmedabad"]
[Date "2022.04.02"]
[Round "1.5"]
[White "Venkatesh, M.R."]
[Black "Jain, Kushagra"]
[Result "1-0"]
[ECO "B23"]
[WhiteElo "2493"]
[BlackElo "1452"]
[Annotator "ChessBase"]
[PlyCount "66"]
[EventDate "2022.03.31"]
[EventType "swiss"]
[EventCountry "IND"]
[SourceTitle "playchess.com"]
[Source "ChessBase"]
[SourceQuality "1"]
[TimeControl "5400+30"]

1. e4 {[%emt 0:02:19]} c5 {[%emt 0:00:05]} 2. Nc3 {[%emt 0:00:16]} a6 {[%emt 0:00:25]} 3. g3 {[%emt 0:00:25]} b5 {[%emt 0:01:24]} 4. Bg2 {[%emt 0:00:08]} Bb7 {[%emt 0:00:08]} 5. d3 {[%emt 0:02:20]} e6 {[%emt 0:00:27]} 6. f4 {[%emt 0:00:15]} Nf6 {[%emt 0:00:35]} 7. Nf3 {[%emt 0:00:27]} d5 {[%emt 0:00:04]} 8. e5 {[%emt 0:03:12]} Nfd7 {[%emt 0:00:21]} 9. O-O {[%emt 0:00:43]} Nc6 {[%emt 0:00:18]} 10. f5 {[%emt 0:04:58]} exf5 {[%emt 0:28:20]} 11. Nxd5 {[%emt 0:03:42]} Be7 {[%emt 0:02:59]} 12. Nf4 {[%emt 0:15:04]} Nf8 {[%emt 0:07:36]} 13. c3 {[%emt 0:14:45]} Ne6 {[%emt 0:00:56]} 14. d4 {[%emt 0:01:52]} cxd4 {[%emt 0:06:21]} 15. Nxd4 {[%emt 0:00:28]} Bc5 {[%emt 0:09:34]} 16. Be3 {[%emt 0:02:39]} O-O {[%emt 0:06:30]} 17. Nxf5 {[%emt 0:04:38]} Bxe3+ {[%emt 0:01:10]} 18. Nxe3 {[%emt 0:00:03]} Qg5 {[%emt 0:04:14]} 19. Ng4 {[%emt 0:09:33]} Rfd8 {[%emt 0:07:34]} 20. Qe2 {[%emt 0:07:11]} Ncd4 {[%emt 0:08:16]} 21. cxd4 {[%emt 0:01:15]} Nxd4 {[%emt 0:00:36]} 22. Qf2 {[%emt 0:00:18]} Bxg2 {[%emt 0:00:09]} 23. Nxg2 {[%emt 0:00:03]} Qxg4 {[%emt 0:00:11]} 24. Qxf7+ {[%emt 0:00:48]} Kh8 {[%emt 0:00:03]} 25. Rae1 {[%emt 0:01:15]} h6 {[%emt 0:05:12]} 26. e6 {[%emt 0:01:38]} Re8 {[%emt 0:02:04]} 27. e7 {[%emt 0:00:22]} Kh7 {[%emt 0:02:49]} 28. Rf2 {[%emt 0:05:03]} Rac8 {[%emt 0:02:31]} 29. Nh4 {[%emt 0:03:09]} a5 {[%emt 0:01:20]} 30. Qd5 {[%emt 0:07:09]} Rc7 {[%emt 0:01:53]} 31. Rf8 {[%emt 0:00:40]} Ne2+ {[%emt 0:00:23]} 32. Rxe2 {[%emt 0:00:22]} Rc1+ {[%emt 0:00:24]} 33. Kf2 {[%emt 0:00:07]} Ra8 {[%emt 0:01:14]} 1-0

[Event "3rd Gujarat GM Open 2022"]
[Site "Ahmedabad"]
[Date "2022.04.02"]
[Round "1.6"]
[White "Aditi Yogesh Kayal"]
[Black "Fawzy, Adham"]
[Result "0-1"]
[ECO "B33"]
[WhiteElo "1449"]
[BlackElo "2476"]
[Annotator "ChessBase"]
[PlyCount "110"]
[EventDate "2022.03.31"]
[EventType "swiss"]
[EventCountry "IND"]
[SourceTitle "playchess.com"]
[Source "ChessBase"]
[SourceQuality "1"]
[TimeControl "5400+30"]

1. e4 {[%emt 0:00:05]} c5 {[%emt 0:26:00]} 2. Nf3 {[%emt 0:00:11]} Nc6 {[%emt 0:00:02]} 3. d4 {[%emt 0:00:17]} cxd4 {[%emt 0:00:08]} 4. Nxd4 {[%emt 0:00:14]} Nf6 {[%emt 0:00:07]} 5. Nc3 {[%emt 0:00:44]} e5 {[%emt 0:00:09]} 6. Ndb5 {[%emt 0:00:32]} d6 {[%emt 0:00:02]} 7. Bg5 {[%emt 0:00:40]} a6 {[%emt 0:00:04]} 8. Na3 {[%emt 0:00:15]} b5 {[%emt 0:00:10]} 9. Bxf6 {[%emt 0:00:56]} gxf6 {[%emt 0:00:21]} 10. Nd5 {[%emt 0:00:53]} Bg7 {[%emt 0:01:44]} 11. Bd3 {[%emt 0:03:24]} Ne7 {[%emt 0:00:34]} 12. c4 {[%emt 0:06:02]} f5 {[%emt 0:01:02]} 13. Nxe7 {[%emt 0:09:37]} Qxe7 {[%emt 0:00:12]} 14. cxb5 {[%emt 0:12:42]} d5 {[%emt 0:02:10]} 15. bxa6 {[%emt 0:03:21]} O-O {[%emt 0:01:26]} 16. O-O {[%emt 0:02:44]} fxe4 {[%emt 0:00:12]} 17. Bb5 {[%emt 0:01:16]} Rd8 {[%emt 0:03:15]} 18. Qe2 {[%emt 0:02:47]} Qe6 {[%emt 0:01:16]} 19. Rac1 {[%emt 0:04:32]} Bxa6 {[%emt 0:00:24]} 20. Rfd1 {[%emt 0:02:49]} Bb7 {[%emt 0:02:13]} 21. Rc7 {[%emt 0:01:41]} Qb6 {[%emt 0:00:40]} 22. Rdc1 {[%emt 0:00:38]} Rac8 {[%emt 0:00:05]} 23. Rxc8 {[%emt 0:01:11]} Rxc8 {[%emt 0:00:15]} 24. Rxc8+ {[%emt 0:00:10]} Bxc8 {[%emt 0:00:02]} 25. Qc2 {[%emt 0:01:13]} Be6 {[%emt 0:00:04]} 26. Qc6 {[%emt 0:01:10]} Qd4 {[%emt 0:00:23]} 27. Qc1 {[%emt 0:01:18]} Qb4 {[%emt 0:00:52]} 28. Qc3 {[%emt 0:01:23]} Qxc3 {[%emt 0:03:32]} 29. bxc3 {[%emt 0:00:39]} Bf8 {[%emt 0:00:42]} 30. Nc2 {[%emt 0:02:47]} Bc5 {[%emt 0:00:37]} 31. a4 {[%emt 0:02:47]} d4 {[%emt 0:00:49]} 32. cxd4 {[%emt 0:00:07]} exd4 {[%emt 0:00:03]} 33. Kf1 {[%emt 0:00:35]} f5 {[%emt 0:03:57]} 34. g3 {[%emt 0:01:29]} Bb3 {[%emt 0:00:45]} 35. Na1 {[%emt 0:00:48]} Bd1 {[%emt 0:00:49]} 36. Ke1 {[%emt 0:00:33]} Bh5 {[%emt 0:00:21]} 37. Nc2 {[%emt 0:04:00]} Kf7 {[%emt 0:02:01]} 38. h3 {[%emt 0:02:50]} Kf6 {[%emt 0:00:13]} 39. Bc4 {[%emt 0:01:19]} Ke5 {[%emt 0:01:24]} 40. Ba6 {[%emt 0:00:51]} d3 {[%emt 0:00:43]} 41. Ne3 {[%emt 0:00:48]} Bb4+ {[%emt 0:00:02]} 42. Kf1 {[%emt 0:00:15]} Be2+ {[%emt 0:01:18]} 43. Kg1 {[%emt 0:00:22]} Bf3 {[%emt 0:00:03]} 44. Kf1 {[%emt 0:00:25]} Bc5 {[%emt 0:02:19]} 45. Ke1 {[%emt 0:01:09]} Be2 {[%emt 0:00:22]} 46. Nc4+ {[%emt 0:04:14]} Kd4 {[%emt 0:00:24]} 47. Kd2 {[%emt 0:01:23]} Bb4+ {[%emt 0:00:03]} 48. Kc1 {[%emt 0:00:10]} d2+ {[%emt 0:00:20]} 49. Nxd2 {[%emt 0:00:09]} Bxa6 {[%emt 0:00:05]} 50. Nb3+ {[%emt 0:00:39]} Kd3 {[%emt 0:00:21]} 51. Kd1 {[%emt 0:00:21]} Bc4 {[%emt 0:00:10]} 52. Nc1+ {[%emt 0:00:11]} Kd4 {[%emt 0:00:36]} 53. Ne2+ {[%emt 0:00:23]} Ke5 {[%emt 0:00:02]} 54. Nf4 {[%emt 0:00:48]} Bb3+ {[%emt 0:00:04]} 55. Ke2 {[%emt 0:00:19]} Bxa4 {[%emt 0:00:03]} 0-1

[Event "3rd Gujarat GM Open 2022"]
[Site "Ahmedabad"]
[Date "2022.04.02"]
[Round "1.7"]
[White "Chanda, Sandipan"]
[Black "Ruchit D Acharya"]
[Result "1-0"]
[ECO "A95"]
[WhiteElo "2485"]
[BlackElo "1445"]
[Annotator "ChessBase"]
[PlyCount "61"]
[EventDate "2022.03.31"]
[EventType "swiss"]
[EventCountry "IND"]
[SourceTitle "playchess.com"]
[Source "ChessBase"]
[SourceQuality "1"]
[TimeControl "5400+30"]

1. d4 {[%emt 0:00:04]} f5 {[%emt 0:00:12]} 2. g3 {[%emt 0:01:15]} Nf6 {[%emt 0:00:26]} 3. Bg2 {[%emt 0:00:08]} e6 {[%emt 0:00:22]} 4. c4 {[%emt 0:02:11]} Be7 {[%emt 0:01:23]} 5. Nc3 {[%emt 0:04:05]} O-O {[%emt 0:01:06]} 6. Nf3 {[%emt 0:00:20]} d5 {[%emt 0:00:38]} 7. O-O {[%emt 0:00:15]} c6 {[%emt 0:00:58]} 8. Rb1 {[%emt 0:01:48]} Ne4 {[%emt 0:04:47]} 9. Qc2 {[%emt 0:02:29]} Qa5 {[%emt 0:05:11]} 10. a3 {[%emt 0:08:57]} b5 {[%emt 0:05:22]} 11. b4 {[%emt 0:06:02]} Qc7 {[%emt 0:01:22]} 12. c5 {[%emt 0:02:25]} Bf6 {[%emt 0:03:49]} 13. Bf4 {[%emt 0:02:43]} Qe7 {[%emt 0:00:45]} 14. Nxe4 {[%emt 0:01:16]} fxe4 {[%emt 0:02:34]} 15. Bd6 {[%emt 0:00:33]} Qf7 {[%emt 0:00:11]} 16. Ne5 {[%emt 0:00:23]} Bxe5 {[%emt 0:00:19]} 17. dxe5 {[%emt 0:00:18]} Re8 {[%emt 0:01:04]} 18. f3 {[%emt 0:01:00]} exf3 {[%emt 0:01:04]} 19. Rxf3 {[%emt 0:00:35]} Qg6 {[%emt 0:01:16]} 20. Rbf1 {[%emt 0:00:50]} Nd7 {[%emt 0:00:21]} 21. e4 {[%emt 0:01:51]} Bb7 {[%emt 0:01:39]} 22. Rf7 {[%emt 0:01:19]} Bc8 {[%emt 0:02:28]} 23. Qf2 {[%emt 0:01:00]} h6 {[%emt 0:01:35]} 24. exd5 {[%emt 0:04:01]} exd5 {[%emt 0:02:27]} 25. Qd4 {[%emt 0:16:16]} Qe6 {[%emt 0:02:21]} 26. Bh3 {[%emt 0:04:42]} Qxh3 {[%emt 0:02:47]} 27. e6 {[%emt 0:00:13]} Nf6 {[%emt 0:00:10]} 28. Rxg7+ {[%emt 0:00:13]} Kh8 {[%emt 0:00:41]} 29. Rxf6 {[%emt 0:05:37]} Kxg7 {[%emt 0:02:07]} 30. Rf7+ {[%emt 0:00:23]} Kg6 {[%emt 0:00:05]} 31. Rg7+ {[%emt 0:00:18]} 1-0

[Event "3rd Gujarat GM Open 2022"]
[Site "Ahmedabad"]
[Date "2022.04.02"]
[Round "2.1"]
[White "Saypuri Srithan"]
[Black "Delgado Ramirez, Neuris"]
[Result "0-1"]
[ECO "B30"]
[WhiteElo "1824"]
[BlackElo "2615"]
[Annotator "ChessBase"]
[PlyCount "100"]
[EventDate "2022.03.31"]
[EventType "swiss"]
[EventCountry "IND"]
[SourceTitle "playchess.com"]
[Source "ChessBase"]
[SourceQuality "1"]
[TimeControl "5400+30"]

1. e4 {[%emt 0:00:18]} c5 2. Nf3 {[%emt 0:00:30]} Nc6 {[%emt 0:09:43]} 3. Bb5 {[%emt 0:00:21]} e6 {[%emt 0:00:07]} 4. O-O {[%emt 0:00:10]} Nge7 {[%emt 0:00:04]} 5. d4 {[%emt 0:00:08]} cxd4 {[%emt 0:00:14]} 6. Nxd4 {[%emt 0:00:11]} b6 {[%emt 0:02:57]} 7. Bg5 {[%emt 0:07:25]} Nxd4 {[%emt 0:06:08]} 8. Qxd4 {[%emt 0:01:32]} f6 {[%emt 0:00:28]} 9. Be3 {[%emt 0:06:20]} Bb7 {[%emt 0:03:43]} 10. f4 {[%emt 0:09:52]} a6 {[%emt 0:05:00]} 11. Be2 {[%emt 0:02:47]} Ng6 {[%emt 0:03:19]} 12. Nc3 {[%emt 0:04:30]} Bc5 {[%emt 0:00:58]} 13. Qd2 {[%emt 0:00:48]} Qc7 {[%emt 0:01:20]} 14. Rad1 {[%emt 0:03:02]} Bxe3+ {[%emt 0:01:01]} 15. Qxe3 {[%emt 0:00:12]} O-O {[%emt 0:00:49]} 16. Qd2 {[%emt 0:09:58]} Bc6 {[%emt 0:00:36]} 17. f5 {[%emt 0:09:39]} Ne5 {[%emt 0:00:44]} 18. Qd6 {[%emt 0:03:00]} Qxd6 {[%emt 0:05:17]} 19. Rxd6 {[%emt 0:00:07]} Kf7 {[%emt 0:00:18]} 20. fxe6+ {[%emt 0:04:15]} dxe6 {[%emt 0:00:15]} 21. Bc4 {[%emt 0:03:49]} Nxc4 {[%emt 0:03:39]} 22. Rxc6 {[%emt 0:00:25]} Rfc8 {[%emt 0:00:04]} 23. Rxc8 {[%emt 0:05:36]} Rxc8 {[%emt 0:00:15]} 24. Rb1 {[%emt 0:00:43]} b5 {[%emt 0:02:10]} 25. a3 {[%emt 0:07:51]} Rc6 {[%emt 0:06:55]} 26. a4 {[%emt 0:09:14]} bxa4 {[%emt 0:02:29]} 27. Nxa4 {[%emt 0:01:53]} Nd2 {[%emt 0:00:20]} 28. Rc1 {[%emt 0:00:43]} Nb3 {[%emt 0:01:10]} 29. Rd1 {[%emt 0:01:30]} Rxc2 {[%emt 0:00:57]} 30. Rd7+ {[%emt 0:00:07]} Kg6 {[%emt 0:00:37]} 31. Rd6 {[%emt 0:00:09]} e5 {[%emt 0:04:22]} 32. Rxa6 {[%emt 0:00:12]} Nd2 {[%emt 0:01:35]} 33. b4 {[%emt 0:02:40]} Nxe4 {[%emt 0:00:21]} 34. h3 {[%emt 0:00:40]} Nc3 {[%emt 0:00:18]} 35. Nxc3 {[%emt 0:02:17]} Rxc3 {[%emt 0:00:15]} 36. Ra7 {[%emt 0:02:27]} Rb3 {[%emt 0:00:35]} 37. Rb7 {[%emt 0:00:04]} Rb2 {[%emt 0:01:19]} 38. b5 {[%emt 0:00:42]} h5 {[%emt 0:00:50]} 39. b6 {[%emt 0:01:47]} h4 {[%emt 0:00:29]} 40. Kf1 {[%emt 0:00:30]} f5 {[%emt 0:00:30]} 41. Rb8 {[%emt 0:01:15]} e4 {[%emt 0:00:26]} 42. b7 {[%emt 0:00:44]} Kg5 {[%emt 0:00:27]} 43. Ke1 {[%emt 0:00:33]} Kf4 {[%emt 0:01:16]} 44. Kd1 {[%emt 0:00:16]} Kg3 {[%emt 0:01:15]} 45. Kc1 {[%emt 0:00:49]} Rb6 {[%emt 0:00:10]} 46. Kd2 {[%emt 0:00:10]} f4 {[%emt 0:00:46]} 47. Kc3 {[%emt 0:00:44]} f3 {[%emt 0:00:51]} 48. gxf3 {[%emt 0:00:35]} exf3 {[%emt 0:00:08]} 49. Kd3 {[%emt 0:00:12]} f2 {[%emt 0:00:14]} 50. Ke2 {[%emt 0:00:23]} Rb2+ {[%emt 0:00:12]} 0-1